bitfinex-derivatives/quotes_SOLF0:USTF0_20250829
["timestamp","ask_amount","ask_price","bid_price","bid_amount"]
[1756481605502,66.9266,209.15,208.96,66.9862]
[1756481605503,7.57,209.15,209.01,66.9703]
[1756481605803,7.57,209.2,209.03,66.9638]
[1756481606000,3.28860484,209.19,209.03,122.0]
[1756481606202,3.28860484,209.18,209.05,4.3043]
[1756481606406,7.57,209.16,209.02,7.73]
[1756481606610,3.28860484,209.15,209.02,7.73]
[1756481606807,3.28860484,209.15,209.02,12.0348]
[1756481606808,4.3024,209.15,209.02,12.0348]
[1756481607108,7.57,209.16,209.04,7.73]
[1756481607814,7.57,209.23,209.07,7.73]
[1756481608009,3.2892991,209.22,209.1,66.941]
[1756481608307,4.3,209.26,209.14,4.3025]
[1756481608610,3.2886897,209.25,209.11,110.07]
[1756481608814,3.2886897,209.24,209.11,110.07]
[1756481609010,321.6,209.27,209.11,110.07]
[1756481609216,4.3003,209.25,209.13,4.3027]
[1756481609803,4.3007,209.23,209.11,7.73]
[1756481610009,4.3007,209.23,209.11,133.71]
[1756481610211,4.3007,209.23,209.11,7.73]
[1756481610410,11.8706,209.24,209.11,7.73]
[1756481610915,321.6,209.27,209.11,7.73]
[1756481611318,4.3003,209.25,209.14,7.73]
[1756481612819,4.3007,209.23,209.14,7.73]
[1756481614214,7.57,209.26,209.09,133.65]
[1756481615413,4.3006,209.24,209.12,4.3029]
[1756481615618,7.57,209.26,209.13,7.73]
[1756481616317,4.3003,209.25,209.13,7.73]
[1756481616917,7.64,209.33,209.15,66.9244]
[1756481617218,7.64,209.33,209.16,7.25]
[1756481617415,7.64,209.33,209.15,66.9244]
[1756481617416,7.64,209.33,209.2,11.5512]
[1756481618423,7.64,209.29,209.13,4.3026]
[1756481618622,66.8841,209.28,209.11,7.25]
[1756481618815,4.3004,209.24,209.11,7.25]
[1756481619113,4.3004,209.24,209.11,11.5529]
[1756481622920,7.64,209.27,209.12,66.9344]
[1756481623221,7.64,209.27,209.13,7.25]
[1756481624918,4.3,209.26,209.14,4.3023]
[1756481625118,7.64,209.27,209.13,7.25]
[1756481625419,4.3004,209.25,209.13,7.25]
[1756481625911,11.9399,209.27,209.13,7.25]
[1756481626117,7.64,209.27,209.13,66.9313]
[1756481626311,7.64,209.27,209.14,7.25]
[1756481626723,4.3004,209.25,209.14,7.25]
[1756481629424,7.64,209.27,209.14,7.25]
[1756481629425,4.3007,209.23,209.14,7.25]
[1756481629626,11.9407,209.23,209.14,7.25]
[1756481630019,7.64,209.23,209.14,7.25]
[1756481630219,7.64,209.3,209.14,7.25]
[1756481630421,7.64,209.28,209.14,7.25]
[1756481631119,7.64,209.28,209.18,7.25]
[1756481631723,7.64,209.28,209.19,4.3013]
[1756481632125,7.64,209.28,209.21,4.3009]
[1756481632323,4.2988,209.32,209.21,4.3009]
[1756481633421,74.5117,209.32,209.18,7.25]
[1756481633623,66.876,209.31,209.13,56.26]
[1756481633827,66.876,209.31,209.12,7.25]
[1756481633828,7.64,209.29,209.12,7.25]
[1756481634024,7.64,209.29,209.13,7.25]
[1756481635626,7.64,209.29,209.17,4.3017]
[1756481635822,7.64,209.29,209.17,11.5517]
[1756481636230,7.64,209.29,209.1,191.44228496]
[1756481636231,7.64,209.24,209.11,7.25]
[1756481636431,3.28105382,209.23,209.11,7.25]
[1756481636731,7.64,209.23,209.11,7.25]
[1756481636929,7.64,209.19,209.1,124.50188496]
[1756481637726,4.3023,209.16,209.1,124.50188496]
[1756481637921,7.64,209.18,209.1,124.50188496]
[1756481638126,7.64,209.18,208.98,78.18306807]
[1756481638127,7.64,209.16,209.0,133.05]
[1756481638327,10.91552344,209.15,209.0,133.05]
[1756481638527,4.3031,209.12,209.01,4.305]
[1756481639328,11.9431,209.12,209.01,4.305]
[1756481640228,4.3033,209.1,209.0,7.25]
[1756481640835,7.64,209.12,209.0,7.25]
[1756481641136,74.5756,209.12,209.0,7.25]
[1756481641331,3.28038823,209.11,209.0,7.25]
[1756481641530,74.5756,209.12,209.0,7.25]
[1756481641728,3.2816375,209.11,208.92,321.18]
[1756481641932,7.64,209.1,208.98,7.25]
[1756481642233,7.64,209.16,208.98,7.25]
[1756481642432,7.64,209.16,209.03,7.25]
[1756481643232,7.64,209.16,209.06,4.3041]
[1756481643730,7.64,209.22,209.08,66.9475]
[1756481643930,3.2810722,209.21,209.09,7.25]
[1756481644131,7.64,209.22,209.1,66.9403]
[1756481644335,7.64,209.22,209.11,7.25]
[1756481644527,125.82,209.27,209.13,66.9315]
[1756481644528,133.46,209.27,209.13,66.9315]
[1756481644730,7.64,209.27,209.14,7.25]
[1756481644933,0.83170021,209.34,209.17,66.9185]
[1756481645131,3.28244803,209.33,209.21,7.25]
[1756481645328,3.28244803,209.32,209.21,7.25]
[1756481645526,7.64,209.34,209.23,4.3006]
[1756481645739,3.28263786,209.33,209.22,66.9025]
[1756481645929,3.28263786,209.33,209.21,7.25]
[1756481645930,7.64,209.34,209.21,7.25]
[1756481646134,3.28531371,209.33,209.21,7.25]
[1756481646334,7.64,209.34,209.25,4.3002]
[1756481646534,7.64,209.34,209.25,7.25]
[1756481648236,3.28759478,209.33,209.25,7.25]
[1756481648434,7.64,209.34,209.25,7.25]
[1756481648634,3.2898413,209.33,209.25,7.25]
[1756481648839,7.61,209.31,209.19,7.52]
[1756481649044,3.28944906,209.3,209.19,7.52]
[1756481649234,7.61,209.31,209.19,7.52]
[1756481649534,7.61,209.31,209.13,7.52]
[1756481649535,7.61,209.29,209.13,7.52]
[1756481649738,3.29261738,209.28,209.13,7.52]
[1756481649937,4.3002,209.25,209.13,7.52]
[1756481650736,4.3002,209.25,209.14,4.3025]
[1756481650941,4.3006,209.24,209.13,7.52]
[1756481651731,4.3006,209.24,209.13,11.8227]
[1756481651935,4.3009,209.22,209.13,7.52]
[1756481653237,74.5006,209.26,209.13,7.52]
[1756481653238,7.61,209.26,209.13,7.52]
[1756481653435,3.3014118,209.25,209.13,7.52]
[1756481653642,4.2994,209.3,209.18,4.3017]
[1756481653837,3.29991611,209.29,209.18,7.52]
[1756481654042,7.61,209.31,209.18,7.52]
[1756481654338,7.61,209.31,209.22,11.8208]
[1756481654732,3.30075056,209.3,209.22,7.52]
[1756481654937,7.61,209.34,209.22,7.52]
[1756481655239,7.61,209.34,209.12,131.53247244]
[1756481655240,4.3003,209.25,209.15,7.52]
[1756481655437,66.871,209.32,209.15,7.52]
[1756481655438,7.61,209.27,209.15,7.52]
[1756481655637,0.83172008,209.33,209.12,234.03757569]
[1756481655638,8.44172008,209.33,209.19,7.52]
[1756481655839,3.30059916,209.32,209.19,7.52]
[1756481656143,3.30059916,209.31,209.2,4.3013]
[1756481656338,4.2988,209.32,209.19,7.52]
[1756481656541,3.29943162,209.31,209.23,4.3006]
[1756481656740,7.61,209.33,209.21,66.9041]
[1756481657243,3.29761876,209.32,209.22,4.3007]
[1756481657445,7.61,209.33,209.2,192.648]
[1756481657641,3.29692668,209.32,209.21,66.9049]
[1756481657844,7.61,209.33,209.23,7.52]
[1756481658044,7.61,209.33,209.25,4.3001]
[1756481658246,7.61,209.33,209.23,7.52]
[1756481658545,3.29753914,209.32,209.24,4.3003]
[1756481658744,7.61,209.33,209.24,4.3003]
[1756481658944,3.2994767,209.32,209.23,7.52]
[1756481659140,7.61,209.33,209.23,7.52]
[1756481659335,3.29924348,209.32,209.23,7.52]
[1756481659541,185.84613936,209.35,209.23,7.52]
[1756481659847,3.29943937,209.34,209.24,66.8964]
[1756481660148,321.47731,209.36,209.26,7.52]
[1756481660149,0.19731,209.36,209.26,7.52]
[1756481660645,0.19731,209.36,209.28,7.52]
[1756481660845,0.19731,209.36,209.29,4.2993]
[1756481661339,0.19731,209.36,209.31,4.299]
[1756481661545,0.19731,209.36,209.27,7.52]
[1756481661941,0.19731,209.36,209.27,18.73955756]
[1756481662147,0.19731,209.36,209.34,7.52]
[1756481664740,0.19731,209.36,209.33,4.2984]
[1756481664945,7.61,209.45,209.34,7.52]
[1756481665251,7.61,209.51,209.34,74.3842]
[1756481665445,72.09392828,209.59,209.28,7.52]
[1756481665446,74.4527,209.41,209.28,7.52]
[1756481665849,4.2974,209.4,209.28,7.52]
[1756481666049,7.61,209.41,209.28,7.52]
[1756481666752,4.2975,209.39,209.28,7.52]
[1756481667549,66.8458,209.4,209.28,7.52]
[1756481667954,7.61,209.39,209.23,11.8206]
[1756481668456,7.61,209.37,209.23,11.8206]
[1756481668858,4.2984,209.34,209.25,4.3002]
[1756481670067,4.298,209.36,209.25,4.3002]
[1756481670356,7.61,209.37,209.23,7.52]
[1756481670657,4.2987,209.33,209.23,7.52]
[1756481671657,4.2987,209.33,209.22,321.12]
[1756481671658,7.61,209.33,209.22,321.12]
[1756481671849,7.61,209.33,209.18,7.52]
[1756481672044,7.61,209.33,209.2,4.3011]
[1756481672656,4.2992,209.3,209.2,4.3011]
[1756481672958,7.61,209.33,209.2,4.3011]
[1756481673155,4.2992,209.3,209.21,4.3009]
[1756481673857,4.2992,209.3,209.22,4.3007]
[1756481674057,7.61,209.33,209.22,66.903]
[1756481674258,7.61,209.33,209.21,7.52]
[1756481674460,4.299,209.31,209.21,11.8209]
[1756481674661,7.61,209.33,209.21,7.52]
[1756481674957,125.64,209.38,209.21,7.52]
[1756481675151,7.61,209.42,209.32,11.18985928]
[1756481675351,0.83118372,209.47,209.33,7.52]
[1756481675662,7.61,209.48,209.33,7.52]
[1756481676553,7.61,209.48,209.32,117.3505]
[1756481676755,7.45,209.55,209.35,7.39]
[1756481676949,8.28101501,209.55,209.35,7.39]
[1756481677452,8.28101501,209.55,209.4,7.39]
[1756481678359,8.28101501,209.55,209.36,4.2979]
[1756481678561,7.45,209.53,209.36,22.6179]
[1756481678752,7.45,209.54,209.36,18.32]
[1756481678957,0.83101501,209.55,209.35,7.39]
[1756481679158,10.72971435,209.54,209.35,7.39]
[1756481679353,7.45,209.52,209.35,7.39]
[1756481680062,66.8112,209.51,209.35,7.39]
[1756481680264,7.45,209.52,209.35,7.39]
[1756481680758,66.8273,209.46,209.35,7.39]
[1756481680957,7.45,209.45,209.35,7.39]
[1756481681458,66.8335,209.44,209.35,7.39]
[1756481682365,66.8399,209.42,209.29,125.58]
[1756481682662,66.8335,209.44,209.29,132.97]
[1756481682962,66.8335,209.44,209.29,7.39]
[1756481683162,66.8335,209.44,209.29,132.97]
[1756481683364,7.45,209.39,209.29,7.39]
[1756481684158,74.2712,209.48,209.29,7.39]
[1756481684358,66.8307,209.45,209.31,18.67277081]
[1756481684562,4.2966,209.43,209.32,7.39]
[1756481684868,7.45,209.48,209.32,7.39]
[1756481685156,66.8235,209.47,209.32,7.39]
[1756481685362,66.8369,209.43,209.32,7.39]
[1756481685563,66.8333,209.44,209.29,117.62]
[1756481685564,7.45,209.42,209.29,125.01]
[1756481685963,74.2735,209.47,209.33,7.39]
[1756481686361,66.8275,209.46,209.33,7.39]
[1756481686665,66.8396,209.42,209.29,125.56]
[1756481686866,66.8433,209.41,209.28,7.39]
[1756481687061,4.298,209.37,209.28,7.39]
[1756481687258,66.8396,209.42,209.28,7.39]
[1756481687259,66.8518,209.39,209.28,7.39]
[1756481687564,66.8559,209.37,209.25,321.06]
[1756481687762,4.2982,209.35,209.25,321.06]
[1756481688065,66.8595,209.36,209.25,321.06]
[1756481688265,7.45,209.35,209.25,321.06]
[1756481688468,4.2988,209.32,209.25,321.06]
[1756481688768,66.8506,209.39,209.25,321.06]
[1756481688967,3.29110144,209.38,209.25,321.06]
[1756481689164,7.45,209.36,209.25,321.06]
[1756481689368,66.8622,209.35,209.23,7.39]
[1756481689662,4.2991,209.31,209.23,7.39]
[1756481690068,7.45,209.36,209.23,7.39]
[1756481690364,4.2988,209.32,209.23,7.39]
[1756481690560,4.2988,209.32,209.2,129.8611]
[1756481690561,7.45,209.32,209.2,4.3011]
[1756481691764,4.2992,209.31,209.2,4.3011]
[1756481692267,7.45,209.3,209.19,7.39]
[1756481693464,4.2998,209.28,209.19,7.39]
[1756481693870,7.45,209.3,209.19,7.39]
[1756481694373,7.45,209.3,209.19,11.6915]
[1756481694761,7.45,209.3,209.19,7.39]
[1756481695165,4.2992,209.31,209.05,7.39]
[1756481695166,74.3662,209.18,209.05,7.39]
[1756481695367,66.9195,209.17,209.05,7.39]
[1756481695568,7.45,209.15,208.99,7.39]
[1756481695774,4.3032,209.11,208.99,7.39]
[1756481696069,11.7532,209.11,208.99,7.39]
[1756481696769,7.45,209.11,208.99,7.39]
[1756481697865,7.45,209.11,209.02,4.3049]
[1756481698771,7.45,209.19,209.06,4.3041]
[1756481699071,7.45,209.19,209.05,192.5763]
[1756481699674,7.45,209.19,209.08,4.3036]
[1756481699874,7.45,209.21,209.03,7.39]
[1756481700076,7.45,209.17,209.04,192.5806]
[1756481700370,7.45,209.17,209.06,66.954]
[1756481700878,212.66581361,209.27,209.07,7.39]
[1756481701168,7.45,209.26,209.08,7.39]
[1756481701372,7.45,209.26,209.07,18.67277081]
[1756481701373,7.45,209.26,209.2,4.3013]
[1756481701970,7.45,209.26,209.17,11.6917]
[1756481702366,7.45,209.26,209.13,91.84]
[1756481702566,7.45,209.26,209.16,4.3021]
[1756481703073,126.5730428,209.27,209.16,7.39]
[1756481703268,7.45,209.31,209.16,7.39]
[1756481703471,125.0,209.39,209.13,91.84]
[1756481703472,7.45,209.38,209.18,7.39]
[1756481703674,7.45,209.38,209.28,4.2996]
[1756481704167,7.45,209.38,209.25,7.39]
[1756481704368,7.45,209.38,209.22,18.67277081]
[1756481704369,7.45,209.38,209.17,7.39]
[1756481704574,7.45,209.37,209.18,125.94]
[1756481704771,7.45,209.37,209.17,7.39]
[1756481704971,125.0,209.39,209.13,321.18]
[1756481704972,7.45,209.32,209.13,125.94]
[1756481705177,125.94,209.31,209.13,125.94]
[1756481705372,125.94,209.31,209.15,4.3022]
[1756481705568,7.45,209.3,209.15,4.3022]
[1756481707077,7.45,209.3,209.12,7.39]
[1756481707078,7.45,209.3,209.12,11.6928]
[1756481707378,7.13,209.25,209.12,7.39]
[1756481707780,4.3007,209.23,209.12,7.39]
[1756481708372,7.13,209.25,209.14,66.9276]
[1756481708571,7.13,209.25,209.13,66.9316]
[1756481708782,7.13,209.25,209.14,66.928]
[1756481709679,66.8977,209.24,209.12,7.39]
[1756481709985,7.13,209.23,209.12,7.39]
[1756481710979,7.13,209.23,209.15,4.3023]
[1756481711174,4.3001,209.26,209.15,4.3023]
[1756481711384,66.857,209.37,209.15,4.3023]
[1756481711385,7.13,209.35,209.21,7.63]
[1756481712081,135.27872701,209.31,209.21,7.63]
[1756481712477,7.13,209.39,209.21,7.63]
[1756481712683,7.13,209.39,209.22,28.78]
[1756481713080,7.13,209.39,209.21,7.63]
[1756481714183,7.13,209.39,209.22,4.3007]
[1756481714379,7.13,209.39,209.21,7.63]
[1756481716282,7.13,209.39,209.22,4.3007]
[1756481716581,7.13,209.39,209.21,7.63]
[1756481716986,85.34,209.38,209.21,7.63]
[1756481717381,133.05,209.39,209.21,7.63]
[1756481717781,133.05,209.39,209.27,4.2999]
[1756481718184,133.05,209.39,209.25,7.63]
[1756481718382,7.13,209.45,209.27,7.63]
[1756481718685,7.13,209.45,209.29,7.63]
[1756481718880,7.13,209.45,209.31,7.63]
[1756481719077,7.13,209.45,209.32,66.8706]
[1756481719287,7.13,209.45,209.34,7.63]
[1756481719887,56.44,209.49,209.34,7.63]
[1756481720387,123.258,209.49,209.35,4.2982]
[1756481721785,4.2962,209.45,209.35,4.2982]
[1756481721980,4.2962,209.45,209.34,7.63]
[1756481722181,11.4253,209.5,209.34,7.63]
[1756481722384,11.4253,209.5,209.36,66.8588]
[1756481722587,7.13,209.5,209.34,74.4948]
[1756481723089,4.296,209.47,209.34,133.37]
[1756481723291,4.296,209.47,209.34,7.63]
[1756481723484,4.296,209.47,209.37,4.2978]
[1756481723784,7.13,209.45,209.34,7.63]
[1756481724189,7.13,209.43,209.29,7.63]
[1756481724986,4.2974,209.39,209.29,7.63]
[1756481725492,4.2982,209.36,209.29,7.63]
[1756481725688,66.8535,209.38,209.24,7.63]
[1756481726092,4.2985,209.34,209.24,11.9303]
[1756481726486,7.13,209.39,209.24,7.63]
[1756481727089,75.4171,209.47,209.24,7.63]
[1756481727090,132.75,209.47,209.24,7.63]
[1756481727485,7.13,209.45,209.24,7.63]
[1756481727682,7.13,209.44,209.27,4.2999]
[1756481728085,7.13,209.39,209.27,4.2999]
[1756481728694,66.854,209.38,209.25,4.3003]
[1756481729093,4.2988,209.33,209.24,7.63]
[1756481729294,7.13,209.34,209.24,7.63]
[1756481729696,11.4285,209.34,209.24,7.63]
[1756481730094,7.13,209.34,209.24,7.63]
[1756481730500,4.2989,209.32,209.24,11.9305]
[1756481730700,7.13,209.34,209.24,11.9305]
[1756481731305,11.4285,209.34,209.25,4.3001]
[1756481731994,7.13,209.34,209.26,4.2999]
[1756481732400,7.13,209.34,209.24,7.63]
[1756481732605,11.4285,209.34,209.24,11.9305]
[1756481732801,7.13,209.34,209.24,7.63]
[1756481732995,7.13,209.34,209.19,7.63]
[1756481733202,4.2991,209.31,209.22,4.3007]
[1756481733399,115.20772048,209.38,209.24,7.63]
[1756481733909,74.0007,209.33,209.17,7.63]
[1756481734101,85.18842048,209.33,209.17,7.63]
[1756481734301,4.2999,209.27,209.18,4.3017]
[1756481734608,85.19962048,209.29,209.17,7.63]
[1756481735100,4.3005,209.25,209.17,7.63]
[1756481735307,66.885,209.28,209.17,7.63]
[1756481735901,143.91772048,209.29,209.11,7.63]
[1756481735902,66.9013,209.23,209.11,7.63]
[1756481737300,4.3018,209.18,209.11,7.63]
[1756481737505,73.9795,209.21,209.11,7.63]
[1756481737903,7.07,209.21,209.11,7.63]
[1756481738108,66.9179,209.18,209.01,20.1]
[1756481738298,78.10872048,209.17,209.01,7.61]
[1756481739006,4.3028,209.13,209.03,4.3048]
[1756481739203,66.9273,209.15,209.01,7.61]
[1756481739407,4.3034,209.11,209.01,7.61]
[1756481740702,7.07,209.16,209.02,7.61]
[1756481741111,66.9299,209.14,209.02,7.61]
[1756481741511,18.25772048,209.16,209.02,7.61]
[1756481741812,85.18152048,209.16,209.02,7.61]
[1756481742011,4.303,209.12,209.02,7.61]
[1756481742201,66.93,209.14,209.02,7.61]
[1756481742402,7.07,209.16,209.02,7.61]
[1756481742606,7.07,209.16,209.05,11.9144]
[1756481743213,7.07,209.16,209.06,4.304]
[1756481744702,4.3025,209.15,209.05,7.61]
[1756481745005,7.07,209.16,209.05,7.61]
[1756481745200,7.07,209.16,209.0,125.66]
[1756481745201,7.07,209.12,209.0,7.61]
[1756481745707,66.9478,209.09,209.0,7.61]
[1756481746012,4.3046,209.05,208.97,179.15881006]
[1756481746210,7.07,209.08,208.97,179.15881006]
[1756481746913,7.07,209.08,208.98,7.61]
[1756481747613,11.18772048,209.13,208.98,7.61]
[1756481748009,11.18772048,209.13,208.97,179.15881006]
[1756481748010,11.18772048,209.13,209.02,7.61]
[1756481748911,66.9184,209.18,208.84,7.61]
[1756481748912,7.07,209.04,208.84,7.61]
[1756481749111,11.18772048,209.01,208.84,7.61]
[1756481749412,132.75,209.04,208.88,67.0124]
[1756481749716,132.75,209.04,208.91,7.61]
[1756481749717,7.07,209.04,208.91,7.61]
[1756481749911,4.3049,209.03,208.91,7.61]
[1756481750508,7.07,209.04,208.91,7.61]
[1756481750509,4.3052,209.02,208.91,7.61]
[1756481751016,7.07,209.04,208.91,7.61]
[1756481751316,4.3054,209.01,208.91,7.61]
[1756481751516,66.9648,209.03,208.91,7.61]
[1756481751810,7.07,209.04,208.91,7.61]
[1756481752013,7.07,209.04,208.92,4.3071]
[1756481752216,7.07,209.04,208.91,7.61]
[1756481753214,4.3052,209.02,208.91,7.61]
[1756481753617,7.07,209.04,208.91,7.61]
[1756481753918,11.3748,209.04,208.92,4.307]
[1756481754216,7.07,209.04,208.92,4.307]
[1756481754418,74.0346,209.04,208.91,7.61]
[1756481754715,7.07,209.04,208.91,7.61]
[1756481755115,4.3053,209.01,208.91,7.61]
[1756481755908,66.9655,209.03,208.91,7.61]
[1756481756109,7.07,208.99,208.85,7.61]
[1756481756617,4.3061,208.97,208.85,7.61]
[1756481757020,11.3757,208.99,208.85,7.61]
[1756481757219,11.3757,208.99,208.86,7.61]
[1756481758418,4.306,208.98,208.86,7.61]
[1756481758621,7.07,209.03,208.88,7.61]
[1756481759622,7.07,209.03,208.86,7.61]
[1756481760216,7.07,209.03,208.86,18.79772048]
[1756481760422,7.07,209.03,208.92,7.61]
[1756481761416,7.07,209.01,208.86,7.61]
[1756481762423,7.07,209.01,208.86,11.18772048]
[1756481762624,7.07,209.01,208.87,7.61]
[1756481762922,7.07,209.01,208.88,7.61]
[1756481763116,76.46,209.05,208.91,7.61]
[1756481763515,76.46,209.05,208.91,11.9171]
[1756481764211,76.46,209.05,208.92,4.3069]
[1756481764423,76.46,209.05,208.91,7.61]
[1756481764823,76.46,209.05,208.93,4.3067]
[1756481765621,4.305,209.03,208.93,4.3067]
[1756481765818,7.07,209.04,208.91,11.9172]
[1756481766021,7.07,209.04,208.91,7.61]
[1756481767017,76.46,209.05,208.94,11.18772048]
[1756481767323,76.46,209.05,208.93,7.6]
[1756481767619,76.46,209.05,208.96,4.3061]
[1756481768020,4.3048,209.04,208.95,4.3063]
[1756481768217,76.46,209.05,208.93,7.6]
[1756481768520,76.46,209.05,208.94,11.18772048]
[1756481768711,4.3038,209.08,208.98,4.3057]
[1756481768912,7.22,209.09,208.97,7.6]
[1756481769418,7.22,209.13,209.01,7.6]
[1756481770021,11.5229,209.13,209.01,7.6]
[1756481770217,7.22,209.13,209.01,7.6]
[1756481770422,7.22,209.13,209.01,11.9052]
[1756481770624,7.22,209.13,209.01,7.6]
[1756481770923,4.3045,209.06,208.93,7.6]
[1756481771122,4.3045,209.06,208.93,69.78]
[1756481772020,4.3047,209.05,208.93,137.6467]
[1756481772320,4.3047,209.05,208.93,133.32]
[1756481772521,7.22,209.08,208.96,7.6]
[1756481772914,74.17,209.08,208.96,7.6]
[1756481773315,7.22,209.08,208.96,7.6]
[1756481773822,75.5266,209.17,209.03,4.3049]
[1756481773823,4.303,209.13,209.03,4.3049]
[1756481774121,66.9225,209.17,208.99,84.92]
[1756481774122,7.22,209.12,208.99,84.92]
[1756481774317,7.22,209.12,208.99,133.32]
[1756481774521,4.3036,209.1,208.99,137.6255]
[1756481774717,7.22,209.11,208.99,137.6255]
[1756481774923,7.22,209.11,208.99,7.6]
[1756481775715,4.3038,209.09,209.0,4.3053]
[1756481775919,7.22,209.11,208.99,7.6]
[1756481776319,74.1607,209.11,208.99,7.6]
[1756481777226,74.1607,209.11,208.93,7.6]
[1756481777227,7.22,209.07,208.93,7.6]
[1756481777719,4.3048,209.04,208.93,7.6]
[1756481778428,7.22,209.09,208.97,7.6]
[1756481779224,7.22,209.09,208.94,192.6936]
[1756481779225,5.30792828,209.2,209.07,18.78772048]
[1756481779425,3.49920613,209.19,209.07,18.78772048]
[1756481779721,7.22,209.25,209.11,11.18772048]
[1756481780115,7.22,209.22,209.08,7.6]
[1756481780825,7.22,209.22,208.99,62.0]
[1756481780826,7.22,209.22,209.04,20.4]
[1756481781126,11.18772048,209.23,209.04,20.4]
[1756481781326,7.22,209.22,209.01,7.6]
[1756481781527,7.22,209.22,209.03,7.6]
[1756481782215,7.22,209.22,209.08,4.3037]
[1756481783628,11.5219,209.18,209.08,4.3037]
[1756481784025,11.5219,209.18,209.09,4.3035]
[1756481784227,7.22,209.18,209.07,7.6]
[1756481784423,7.22,209.18,209.1,4.3033]
[1756481785525,7.22,209.18,209.08,4.3039]
[1756481785826,74.139,209.18,209.07,7.6]
[1756481786119,4.3034,209.11,209.03,4.3049]
[1756481786427,192.5725,209.2,209.03,4.3049]
[1756481786428,7.22,209.21,209.04,7.6]
[1756481786723,7.22,209.21,209.09,7.6]
[1756481786923,7.22,209.21,209.03,78.15282048]
[1756481787126,4.3023,209.16,209.08,4.3038]
[1756481788222,4.3019,209.18,209.09,4.3036]
[1756481788629,4.3019,209.18,209.06,7.6]
[1756481788821,4.3019,209.18,209.1,4.3033]
[1756481789017,7.22,209.25,209.11,7.6]
[1756481789224,7.22,209.25,209.12,66.9377]
[1756481789425,7.22,209.25,209.14,7.6]
[1756481790221,4.2999,209.28,209.14,7.6]
[1756481790725,4.2999,209.28,209.17,4.302]
[1756481790925,4.3002,209.27,209.17,4.302]
[1756481791527,4.3002,209.27,209.18,11.9017]
[1756481792027,4.3004,209.26,209.18,11.9017]
[1756481792233,4.3004,209.26,209.18,7.6]
[1756481792826,4.3004,209.26,209.18,11.9017]
[1756481793224,7.22,209.27,209.2,4.3014]
[1756481793430,4.2997,209.29,209.2,4.3014]
[1756481793828,7.22,209.27,209.13,7.6]
[1756481794424,7.22,209.25,209.14,4.3027]